bitfinex/quotes_ETHUSD_20260202
["timestamp","ask_amount","ask_price","bid_price","bid_amount"]
[1769993141729,0.01342642,2310.1,2309.3,0.6844021]
[1769993141913,0.01342642,2309.8,2309.2,1.08259446]
[1769993142097,0.01342642,2309.8,2309.2,1.0826201]
[1769993142298,0.01342642,2309.9,2309.4,0.001]
[1769993142527,0.01342642,2310.3,2309.4,0.001]
[1769993142704,0.01342642,2310.3,2309.4,0.54238936]
[1769993143033,1.08190053,2310.8,2309.4,13.25342279]
[1769993143240,1.08190053,2310.8,2309.5,0.907]
[1769993143538,0.907,2310.9,2309.5,13.61803343]
[1769993143724,1.08162819,2311.4,2309.7,12.71103343]
[1769993143927,0.01342642,2311.5,2309.9,12.71103343]
[1769993144255,1.0815848,2311.5,2309.9,12.71103343]
[1769993144404,0.01342642,2311.1,2309.8,1.08234479]
[1769993144596,0.01342642,2310.8,2309.9,0.5411724]
[1769993144827,0.01342642,2310.4,2309.6,2.49845772]
[1769993145033,0.01342642,2310.2,2309.7,1.08237559]
[1769993145247,0.01342642,2310.2,2309.6,1.0824023]
[1769993145415,0.01342642,2310.1,2309.5,1.08248375]
[1769993145596,0.01342642,2310.1,2309.4,0.54238936]
[1769993145802,1.09548045,2310.5,2309.4,0.001]
[1769993146103,0.01342642,2310.1,2309.4,0.001]
[1769993146629,0.01342642,2310.4,2309.4,0.001]
[1769993146826,1.09548045,2310.5,2309.4,0.001]
[1769993147143,0.01342642,2310.3,2309.4,0.001]
[1769993147515,1.09534964,2310.7,2309.4,0.001]
[1769993147719,0.01342642,2310.5,2309.4,0.001]
[1769993147910,1.09546482,2310.5,2309.4,0.001]
[1769993148108,0.01342642,2310.4,2309.4,0.001]
[1769993148313,0.01342642,2310.3,2309.4,0.001]
[1769993148722,0.01342642,2310.1,2309.4,0.001]
[1769993149034,1.62703672,2310.5,2309.4,0.001]
[1769993149239,1.0820198,2310.5,2309.4,0.001]
[1769993149534,0.907,2310.8,2309.4,12.62460502]
[1769993149707,1.98888161,2310.8,2309.4,12.62460502]
[1769993149903,1.98888161,2310.8,2309.5,1.08248538]
[1769993150233,0.01342642,2310.6,2309.5,1.08248538]
[1769993150406,0.01342642,2310.6,2309.6,1.80370319]
[1769993150921,0.01342642,2310.5,2309.6,1.80370319]
[1769993151437,0.01342642,2310.3,2309.6,1.80370319]
[1769993151642,0.01342642,2310.3,2309.4,5.23794154]
[1769993151643,0.01342642,2310.1,2309.4,0.001]
[1769993151849,0.01342642,2309.8,2309.4,0.001]
[1769993152012,0.01342642,2309.6,2309.4,0.001]
[1769993152422,0.01342642,2309.5,2308.6,1.08290738]
[1769993152622,0.01342642,2309.1,2308.4,0.001]
[1769993152835,0.01342642,2309.1,2308.5,1.08295342]
[1769993153029,0.01342642,2309.2,2308.5,1.08295342]
[1769993153315,0.92042642,2310.0,2308.5,1.08295342]
[1769993153644,1.09579691,2309.8,2308.5,1.08295342]
[1769993153820,0.907,2310.0,2308.6,13.53060502]
[1769993154139,1.09551433,2310.4,2309.5,0.001]
[1769993154339,0.01342642,2310.3,2309.5,0.001]
[1769993154542,2.92682597,2310.4,2309.5,0.001]
[1769993154543,1.83131164,2310.4,2309.5,0.001]
[1769993154708,0.0011,2310.4,2309.5,0.001]
[1769993156824,0.0011,2310.4,2309.5,12.62460502]
[1769993157044,0.0011,2310.4,2309.5,0.001]
[1769993157419,12.87954809,2310.4,2309.5,0.001]
[1769993157616,12.87954809,2310.4,2308.8,1.08278996]
[1769993157617,0.01342642,2309.6,2308.8,1.08278996]
[1769993157830,0.01342642,2309.2,2308.6,1.08290384]
[1769993158019,0.01342642,2309.1,2308.4,0.001]
[1769993158213,0.01342642,2309.4,2308.4,0.001]
[1769993158428,1.0824337,2309.7,2308.4,0.001]
[1769993158635,0.55461241,2309.6,2308.4,0.001]
[1769993159218,0.54118599,2309.6,2308.4,0.001]
[1769993159747,0.54118599,2309.6,2308.4,12.62460502]
[1769993159925,1.09577162,2309.8,2308.4,12.62460502]
[1769993160127,0.01342642,2309.7,2308.5,1.98995429]
[1769993160451,0.01342642,2309.4,2308.5,1.08295429]
[1769993160632,0.01342642,2309.1,2308.4,1.08397038]
[1769993160822,0.01342642,2309.1,2308.4,0.001]
[1769993161024,0.01342642,2309.0,2308.4,0.001]
[1769993161241,0.01342642,2308.9,2308.4,0.001]
[1769993162024,0.907,2309.5,2308.4,0.001]
[1769993162225,1.08227657,2310.0,2308.5,13.53060502]
[1769993162542,0.01342642,2309.9,2308.5,0.907]
[1769993162746,1.09570299,2310.0,2308.5,0.907]
[1769993163050,0.01342642,2309.9,2308.5,0.907]
[1769993163244,0.01342642,2309.5,2308.6,1.3531605]
[1769993163428,1.83165818,2309.9,2308.5,0.907]
[1769993163951,0.01342642,2309.8,2308.5,0.907]
[1769993164152,1.08243851,2309.6,2308.6,1.08290738]
[1769993164354,0.01342642,2309.5,2308.6,1.08290738]
[1769993164565,0.01342642,2309.4,2308.6,1.08290738]
[1769993164732,0.01342642,2309.3,2308.6,1.08290738]
[1769993164932,0.55865949,2309.5,2308.6,1.08290738]
[1769993165142,1.08241831,2309.7,2308.6,1.08290738]
[1769993165346,1.09584473,2309.7,2308.6,1.08290738]
[1769993165527,1.08241831,2309.7,2308.6,1.08290738]
[1769993166142,0.01342642,2309.7,2308.4,4.33262955]
[1769993166346,0.01342642,2309.6,2308.4,4.33262955]
[1769993166559,0.01342642,2309.5,2308.5,1.80402358]
[1769993166773,0.01342642,2309.5,2308.4,4.33262955]
[1769993166933,0.01342642,2309.7,2308.4,4.33262955]
[1769993167246,2.91395815,2309.9,2308.5,12.62360502]
[1769993167444,1.09572639,2309.9,2308.6,0.908]
[1769993167649,1.0956775,2310.0,2308.6,0.908]
[1769993168038,1.08225108,2310.0,2308.6,0.908]
[1769993168362,1.08225108,2310.0,2308.8,0.001]
[1769993168762,0.01342642,2309.9,2308.8,0.001]
[1769993168966,0.01342642,2309.9,2308.8,0.63333024]
[1769993169161,1.0956775,2310.0,2308.8,0.63333024]
[1769993169338,0.01342642,2310.1,2308.8,14.3927318]
[1769993169538,0.0011,2310.3,2308.8,14.3927318]
[1769993169744,0.01342642,2310.2,2308.8,14.3927318]
[1769993169973,0.01342642,2310.0,2308.9,1.54755923]
[1769993170269,1.08232698,2309.9,2308.9,1.08276668]
[1769993170468,0.01342642,2309.8,2308.9,1.08276668]
[1769993170671,0.01342642,2309.6,2308.9,1.08276668]
[1769993170965,0.01342642,2309.8,2308.9,1.08276668]
[1769993171175,1.08225108,2310.0,2308.9,1.08276668]
[1769993171469,0.54396074,2310.2,2309.0,0.60471637]
[1769993172169,0.9091,2310.3,2309.1,1.0826729]
[1769993172348,1.99121281,2310.3,2309.1,1.0826729]
[1769993172555,1.99121882,2310.3,2309.1,1.0826729]
[1769993172946,1.99121882,2310.3,2309.2,0.908]
[1769993173140,0.9091,2310.3,2309.2,0.908]
[1769993173471,1.99121055,2310.3,2309.2,0.908]
[1769993173676,0.63206818,2310.2,2309.2,14.66740156]
[1769993173862,0.0011,2310.3,2309.2,14.66740156]
[1769993174278,0.0011,2310.3,2309.3,1.08257913]
[1769993175976,0.01342642,2310.2,2309.3,1.08257913]
[1769993176272,0.01452642,2310.3,2309.3,2.14770035]
[1769993176845,0.0011,2310.3,2309.3,2.14770035]
[1769993177461,0.0011,2310.3,2309.3,15.90710191]
[1769993177859,0.0011,2310.4,2309.4,13.75940156]
[1769993178184,0.0011,2310.6,2309.4,13.75940156]
[1769993178367,0.0011,2310.6,2309.5,1.59071019]
[1769993178546,0.0011,2310.6,2309.6,0.907]
[1769993178983,0.0011,2310.6,2309.7,14.84179321]
[1769993179187,0.0011,2311.5,2309.7,14.85521963]
[1769993179372,0.0011,2311.5,2309.7,1.08239165]
[1769993179373,0.01342642,2310.9,2309.7,1.08239165]
[1769993179569,0.01342642,2310.8,2309.7,1.08239165]
[1769993179770,0.01342642,2310.5,2309.7,1.08239165]
[1769993179978,0.01342642,2310.4,2309.7,1.08239165]
[1769993180155,0.01342642,2310.6,2309.7,1.08239165]
[1769993180351,0.01342642,2311.0,2309.7,1.08239165]
[1769993180686,0.907,2311.1,2309.8,14.30059739]
[1769993180999,0.907,2311.1,2309.9,1.08229793]
[1769993181283,1.09510429,2311.3,2310.0,0.907]
[1769993181485,1.09610779,2311.5,2310.0,14.66640156]
[1769993181679,0.01342642,2311.4,2310.0,14.66640156]
[1769993181875,0.58866221,2311.4,2310.1,1.57486995]
[1769993182469,0.01342642,2311.2,2310.1,1.57486995]
[1769993182669,0.01342642,2311.2,2310.0,0.907]
[1769993182871,0.0011,2310.9,2310.0,14.66640156]
[1769993183076,0.0011,2310.9,2310.1,1.08220423]
[1769993183295,0.01452642,2311.5,2310.1,14.84160579]
[1769993183590,0.0011,2311.5,2310.1,14.84160579]
[1769993183897,0.0011,2311.5,2310.2,15.76714383]
[1769993184099,0.0011,2311.5,2310.3,0.907]
[1769993184282,0.01452642,2311.5,2310.3,0.907]
[1769993184484,0.01342642,2311.4,2310.2,2.00774227]
[1769993184697,0.01342642,2311.1,2310.2,0.907]
[1769993184866,0.01342642,2311.4,2310.2,0.907]
[1769993185068,0.01342642,2311.3,2310.3,1.08211054]
[1769993185267,1.08162103,2311.4,2310.3,1.08211054]
[1769993185468,0.01342642,2311.3,2310.3,1.08211054]
[1769993185663,0.01342642,2311.2,2310.4,0.63175527]
[1769993185888,0.0011,2311.5,2310.4,0.63175527]
[1769993186167,0.0011,2311.5,2310.4,14.39115683]
[1769993187004,0.0011,2311.5,2310.5,1.08201687]
[1769993187694,0.0011,2311.5,2310.5,14.84141843]
[1769993187884,0.30337679,2311.6,2310.6,15.73952568]
[1769993188084,0.0011,2312.1,2310.9,13.75940156]
[1769993188513,1.08237211,2312.1,2311.0,0.907]
[1769993188797,0.0011,2312.1,2311.0,0.907]
[1769993188984,0.0011,2312.1,2311.1,1.08173596]
[1769993189167,0.0011,2312.1,2311.2,14.39096954]
[1769993189371,0.0011,2312.5,2311.3,13.75940156]
[1769993189575,0.01342642,2313.4,2311.7,13.75940156]
[1769993189576,0.31512087,2313.3,2311.7,13.75940156]
[1769993189781,0.31512087,2313.3,2312.0,12.63271646]
[1769993189783,0.30169445,2313.3,2312.0,12.63271646]
[1769993190000,0.30169445,2313.3,2312.4,26.39211802]
[1769993190181,0.0011,2313.5,2312.6,13.75940156]
[1769993190814,0.0011,2313.5,2312.7,0.907]
[1769993190976,0.0011,2313.5,2312.8,1.08094085]
[1769993191168,0.0011,2313.5,2312.7,5.2307634]
[1769993191169,0.0011,2313.5,2312.7,1.9879589]
[1769993191377,0.0011,2313.5,2312.4,1.08109284]
[1769993191690,0.01342642,2313.0,2312.1,5.23193235]
[1769993191890,0.01342642,2313.0,2312.4,1.08112247]
[1769993192094,0.01342642,2313.0,2312.4,1.08112731]
[1769993192272,0.01342642,2313.1,2312.4,1.08112731]
[1769993192478,0.01342642,2313.4,2312.7,1.08098725]
[1769993192700,0.01342642,2313.4,2312.1,0.52319324]
[1769993192701,0.01342642,2313.3,2312.5,1.08104438]
[1769993192913,0.01452642,2313.5,2312.7,1.08096933]
[1769993192914,0.0011,2313.5,2312.7,1.08096933]
[1769993193409,14.38627769,2314.7,2312.7,14.84037089]
[1769993193614,1.09348224,2314.7,2312.7,14.84037089]
[1769993193789,1.09348224,2314.7,2312.9,13.75940156]
[1769993193973,1.98702843,2314.8,2313.0,13.75940156]
[1769993194178,0.01342642,2313.6,2312.5,0.54053784]
[1769993194377,0.01342642,2313.6,2311.7,13.75940156]
[1769993194378,0.01342642,2313.1,2311.7,13.75940156]
[1769993194601,0.01342642,2313.3,2311.8,0.907]
[1769993194776,0.01342642,2313.1,2312.6,1.08102231]
[1769993194980,0.01342642,2313.5,2312.4,1.08112783]
[1769993194981,1.09407449,2313.5,2312.4,1.08112783]
[1769993195322,0.5429816,2313.4,2312.4,1.08112783]
[1769993195477,0.0011,2312.9,2312.4,1.08112783]
[1769993195674,0.01342642,2313.6,2312.4,1.08112783]
[1769993195878,1.0939535,2313.7,2312.4,1.08112783]
[1769993196109,0.0011,2313.1,2312.4,1.08112783]
[1769993196287,0.01342642,2313.0,2312.3,1.08115241]
[1769993196493,0.01342642,2312.9,2312.3,1.08116411]
[1769993196686,0.01342642,2312.9,2312.2,1.08119313]
[1769993197016,0.01342642,2312.9,2312.2,1.08119271]
[1769993197224,1.09434233,2312.9,2312.2,1.08119271]
[1769993197407,0.01342642,2312.9,2312.2,1.08119271]
[1769993197586,0.0011,2313.1,2312.2,1.71251705]
[1769993197904,0.0011,2313.1,2312.3,0.907]
[1769993198678,1.08190544,2313.1,2312.3,0.907]
[1769993199310,1.08190544,2313.1,2312.4,1.08112783]
[1769993199491,0.0011,2313.1,2312.4,1.08112783]
[1769993199691,0.0011,2313.1,2312.4,1.77554133]
[1769993200503,0.0011,2313.1,2311.4,4.32627308]
[1769993200504,0.01342642,2312.9,2311.4,4.32627308]
[1769993200703,0.01452642,2313.1,2312.3,1.0811684]
[1769993200907,0.0011,2313.1,2312.3,1.0811684]
[1769993201215,0.01342642,2313.0,2312.3,1.0811684]
[1769993201516,0.0011,2313.1,2312.3,0.906]
[1769993202289,1.09383733,2314.0,2312.3,27.02129962]
[1769993202594,0.01342642,2313.8,2312.4,16.18471312]
[1769993202982,0.01342642,2313.8,2312.5,0.906]
[1769993203182,0.01342642,2313.5,2312.6,0.906]
[1769993203385,1.62340036,2313.9,2312.2,13.48258316]
[1769993203682,0.01342642,2313.3,2312.1,1.08126811]
[1769993203888,0.01342642,2313.6,2312.2,14.92921721]
[1769993204089,0.01342642,2313.7,2312.2,14.92921721]
[1769993204282,0.01342642,2313.9,2312.4,13.48258316]
[1769993204505,0.0011,2314.1,2312.4,13.48258316]
[1769993204709,0.0011,2314.1,2312.8,13.48258316]
[1769993204908,0.0011,2314.1,2312.9,3.51752996]
[1769993205116,0.01452642,2314.1,2312.9,3.51752996]
[1769993205497,0.01452642,2314.1,2313.0,1.08084738]
[1769993205813,0.01342642,2313.8,2313.0,1.98684738]
[1769993206022,0.01342642,2313.9,2313.0,1.98684738]
[1769993206202,0.01342642,2313.8,2313.0,3.05021002]
[1769993206407,0.01342642,2313.7,2313.0,3.05021002]
[1769993206719,0.01342642,2313.8,2312.9,1.08088833]
[1769993206922,0.01342642,2314.0,2312.9,1.08088833]
[1769993207131,0.0011,2314.1,2312.9,1.08088833]
[1769993207531,0.0011,2314.1,2313.0,13.3698592]
[1769993207833,0.0011,2314.1,2313.1,1.44507475]
[1769993207994,0.30099796,2314.9,2313.3,26.00257566]
[1769993208193,1.38096005,2314.9,2313.3,26.00257566]
[1769993208439,1.38096005,2314.9,2311.2,0.01342642]
[1769993208440,12.72616624,2314.0,2311.2,0.01342642]
[1769993208595,12.72616624,2314.0,2309.7,0.01342642]
[1769993208596,6.50102432,2309.9,2309.7,0.01342642]
[1769993208807,6.50102432,2309.9,2309.4,13.3698592]
[1769993208808,4.52606958,2310.1,2310.0,0.00985427]
[1769993209021,0.00985427,2309.9,2309.6,1.98839458]
[1769993209202,1.16148616,2310.3,2309.6,1.98840779]
[1769993209397,2.08366729,2310.2,2309.6,0.91942642]
[1769993209726,2.08366729,2310.1,2309.5,1.0959118]
[1769993209929,1.16148616,2310.3,2310.0,0.01342642]
[1769993210131,1.15274568,2310.8,2310.0,0.01342642]
[1769993210338,2.29963542,2311.1,2310.0,0.01342642]
[1769993210339,2.29963542,2311.1,2310.2,0.01342642]
[1769993210631,2.29963542,2311.6,2310.5,0.01342642]
[1769993210847,2.29963542,2311.8,2310.7,0.01342642]
[1769993211128,1.08136548,2311.9,2310.7,0.01342642]
[1769993211309,1.08136548,2311.9,2310.6,0.91942642]
[1769993211622,1.08136548,2311.9,2310.7,1.08192322]
[1769993211944,3.3810009,2311.9,2310.6,1.98796105]
[1769993212239,1.93316511,2311.9,2310.7,0.64502868]
[1769993212939,0.85179963,2311.9,2310.7,0.64502868]
[1769993213096,3.38096229,2312.0,2310.7,0.64502868]
[1769993213499,1.08140842,2311.8,2310.8,1.0818764]
[1769993213816,2.29963542,2312.0,2310.8,1.09530282]
[1769993214142,1.08120755,2312.3,2311.1,0.01342642]
[1769993214301,2.40203542,2312.1,2310.7,1.7135149]
[1769993214709,2.29963542,2312.1,2310.8,0.01342642]
[1769993214916,0.43774255,2312.1,2310.8,0.62023248]
[1769993215320,0.43774255,2312.1,2311.0,0.01342642]
[1769993215510,1.08131487,2312.0,2311.1,1.08173596]
[1769993215837,1.08131487,2312.0,2311.0,1.08177636]
[1769993216733,0.43774255,2312.1,2311.0,1.09520278]
[1769993216939,0.43288589,2312.2,2311.3,0.01342642]
[1769993217115,0.43288589,2312.2,2311.4,0.01342642]
[1769993217434,1.51411847,2312.2,2311.1,0.54359283]
[1769993217634,0.43288589,2312.2,2311.3,1.08164236]
[1769993217837,1.51411362,2312.2,2311.4,0.63153527]
[1769993218036,2.29963542,2312.8,2311.9,13.38328562]
[1769993218236,1.08075046,2313.3,2312.0,14.2768592]
[1769993219737,0.1035,2313.7,2312.1,1.08126811]
[1769993219936,0.1035,2313.7,2312.2,15.33817918]
[1769993219937,0.44498693,2313.7,2312.2,15.33817918]
[1769993220339,0.44498693,2313.7,2312.2,15.3516056]
[1769993220637,0.0011,2313.7,2312.6,0.01342642]
[1769993220837,0.0011,2313.7,2312.7,0.907]
[1769993221320,0.0011,2313.1,2312.7,0.907]
[1769993221839,0.0011,2313.1,2312.8,1.08094085]
[1769993222210,0.0011,2313.7,2312.8,14.45080005]
[1769993222438,0.0011,2313.7,2313.2,0.01342642]
[1769993222639,0.0011,2314.3,2313.5,13.38328562]
[1769993222815,0.0011,2314.3,2313.6,13.3698592]
[1769993223512,0.0011,2314.3,2313.6,13.38328562]
[1769993223714,0.0011,2314.7,2313.7,13.38328562]
[1769993224027,0.0011,2314.7,2313.9,1.08042698]
[1769993225313,0.0011,2314.7,2313.8,3.32611338]
[1769993225514,0.0011,2314.7,2313.8,16.69597258]
[1769993225738,0.0011,2314.7,2313.8,16.709399]
[1769993226533,1.98677768,2315.6,2314.1,13.38328562]
[1769993226715,0.53282217,2315.5,2314.2,1.3396712]
[1769993226918,0.53282217,2315.5,2314.1,0.906]
[1769993228144,1.07972704,2315.4,2314.2,1.08028692]
[1769993228731,1.07972704,2315.4,2314.1,1.08030074]
[1769993230248,1.07972704,2315.4,2313.9,1.08042698]
[1769993230620,0.1024,2315.3,2314.0,0.906]
[1769993230821,0.70577157,2315.3,2314.0,3.00778416]
[1769993231144,0.70577157,2315.3,2314.0,0.906]
[1769993231344,0.60337157,2315.3,2314.0,0.906]
[1769993231547,12.32399921,2315.3,2314.0,0.906]
[1769993231932,12.32399921,2315.3,2313.8,1.08044188]
[1769993232131,0.11582642,2315.0,2313.3,13.95050918]
[1769993232453,0.11582642,2315.0,2313.2,4.32287459]
[1769993232454,0.01342642,2314.7,2313.2,1.08075027]
[1769993232651,0.906,2314.7,2313.3,1.08069753]
[1769993232953,0.906,2314.7,2313.3,13.95051755]
[1769993233140,0.906,2314.7,2313.4,14.69715466]
[1769993233344,0.906,2314.7,2313.6,12.86982002]
[1769993233855,1.07986696,2315.1,2313.6,12.86982002]
[1769993234029,5.65977502,2315.2,2313.8,12.86982002]
[1769993234030,1.07985009,2315.2,2313.8,12.86982002]
[1769993234233,1.07985009,2315.2,2313.9,1.08042698]
[1769993234453,0.01342642,2314.9,2313.6,1.08056029]
[1769993234752,0.01342642,2314.9,2313.6,1.08056137]
[1769993234929,0.01342642,2314.9,2313.8,0.001]
[1769993235123,0.60024456,2315.1,2313.8,1.08146678]
[1769993235431,0.60024456,2315.1,2313.8,13.9512868]
[1769993235656,0.60024456,2315.1,2313.9,1.82731815]
[1769993236373,1.0799136,2315.0,2313.9,2.90769924]
[1769993236525,1.0799136,2315.0,2313.9,15.77751926]
[1769993236729,1.07989412,2315.1,2313.9,15.77751926]
[1769993237025,1.07989412,2315.1,2314.0,2.10063422]
[1769993237746,1.07989412,2315.1,2313.9,1.08038109]
[1769993238242,1.07996025,2314.9,2313.8,0.001]
[1769993238845,1.07996025,2314.9,2313.8,12.87082002]
[1769993239242,1.09338667,2314.9,2313.8,0.001]
[1769993239447,0.01342642,2314.7,2313.8,0.001]
[1769993240034,0.01342642,2314.7,2312.8,12.87082002]
[1769993240035,0.01342642,2314.4,2312.8,12.87082002]
[1769993240369,1.09380671,2314.0,2312.8,0.001]
[1769993240563,1.08038029,2314.0,2312.8,1.08193571]
[1769993240763,1.08038029,2314.0,2312.8,0.001]
[1769993241074,0.01342642,2313.0,2312.0,1.08130876]
[1769993241358,0.01342642,2312.4,2311.4,1.0815857]
[1769993241572,0.01342642,2312.4,2310.9,0.001]
[1769993241573,0.01342642,2312.3,2311.5,1.08153777]
[1769993241727,0.01342642,2312.3,2311.3,4.32644832]
[1769993241728,0.01342642,2312.3,2311.4,1.0815614]
[1769993242050,0.01342642,2312.3,2311.5,0.54080097]
[1769993242253,1.08126811,2312.1,2311.5,0.54080097]
[1769993242454,4.33706272,2312.9,2311.5,1.08154168]
[1769993242654,4.33706272,2312.9,2311.5,13.9513617]
[1769993242855,0.01342642,2312.7,2311.5,13.9513617]
[1769993243349,4.33706272,2312.9,2311.5,13.9513617]
[1769993243543,4.33706272,2312.9,2311.5,13.95136859]
[1769993243744,0.01342642,2312.7,2311.6,1.82777154]
[1769993243950,0.01342642,2312.6,2311.6,1.82777154]
[1769993244153,0.01342642,2312.5,2311.6,1.82777154]
[1769993244356,1.09455425,2312.4,2311.6,1.82777154]
[1769993244557,0.01342642,2312.3,2311.2,1.081665]
[1769993244758,0.01342642,2312.2,2311.1,14.85752248]
[1769993244963,0.01342642,2312.1,2311.1,14.85752047]
[1769993245158,0.01342642,2312.1,2311.1,13.77582002]
[1769993245357,0.01342642,2312.2,2311.3,1.08160905]
[1769993245657,0.01342642,2312.1,2310.9,0.001]
[1769993245961,0.01342642,2311.7,2310.9,0.001]
[1769993246130,0.01342642,2311.6,2310.9,0.001]
[1769993246765,1.08154877,2311.5,2310.9,0.001]
[1769993246940,0.01342642,2311.8,2310.9,0.001]
[1769993246941,0.95211695,2311.8,2310.9,0.001]
[1769993247145,2.03353231,2311.8,2310.9,0.001]
[1769993247347,0.65068566,2311.7,2310.9,0.001]
[1769993247547,0.63725924,2311.7,2310.9,0.001]
[1769993247866,2.03353231,2311.8,2310.9,0.001]
[1769993248035,0.01342642,2311.7,2310.9,0.001]
[1769993248364,0.01342642,2311.5,2310.9,0.001]
[1769993248661,2.03353231,2311.8,2311.0,0.001]
[1769993248841,2.49686199,2311.7,2311.0,0.001]
[1769993249047,2.51028841,2311.7,2311.0,0.001]
[1769993249347,0.01342642,2311.5,2310.6,0.001]
[1769993249549,0.01342642,2311.3,2310.6,0.001]
[1769993249940,0.01342642,2311.2,2310.6,0.001]
[1769993250365,0.01342642,2311.5,2310.6,0.001]
[1769993250559,0.01342642,2311.3,2310.6,0.001]
[1769993250940,1.08168916,2311.2,2310.6,0.001]
[1769993251135,1.32701224,2311.5,2310.1,13.95302425]
[1769993251358,2.85828368,2311.6,2310.1,13.95302425]
[1769993251740,2.8717101,2311.6,2310.1,13.95302425]
[1769993252391,0.01342642,2311.2,2310.1,13.95302425]
[1769993252602,0.01342642,2310.8,2310.1,0.001]
[1769993252753,0.01342642,2310.5,2309.7,0.001]
[1769993252960,1.09553696,2310.3,2309.7,0.001]
[1769993253457,1.09553696,2310.3,2309.1,1.08263982]
[1769993253458,0.01342642,2310.1,2309.1,1.08263982]
[1769993253666,0.01342642,2310.2,2309.3,1.08257736]
[1769993253869,0.906,2310.4,2309.3,13.95239738]
[1769993254083,1.98807314,2310.4,2309.5,12.86982002]
[1769993254384,0.906,2310.4,2309.5,12.86982002]
[1769993254761,0.11582642,2311.1,2309.5,12.86982002]
[1769993254762,1.08178277,2311.0,2309.5,12.86982002]
[1769993255083,0.01342642,2310.9,2309.6,13.95225853]
[1769993255281,0.01342642,2310.9,2309.7,1.82820126]
[1769993255989,0.01342642,2310.7,2309.7,1.82820126]
[1769993256555,1.98864236,2311.4,2309.7,15.60502128]
[1769993256757,0.907,2311.4,2309.7,15.60502128]
[1769993257070,1.08155151,2311.5,2309.7,15.60502128]
[1769993257071,1.77675903,2311.6,2310.1,12.86982002]
[1769993257459,1.77675903,2311.6,2310.3,12.86982002]
[1769993258373,0.01342642,2310.6,2309.8,1.66874598]
[1769993258579,0.01342642,2310.0,2309.4,1.08251661]
[1769993258780,0.01342642,2309.7,2309.0,1.08267316]
[1769993258982,1.09561615,2310.2,2309.1,2.20946005]
[1769993259291,0.01342642,2310.0,2309.1,15.07958568]
[1769993259477,0.01342642,2309.9,2309.1,15.07958568]
[1769993259686,0.01342642,2309.8,2309.1,15.07958568]
[1769993259864,0.01342642,2310.0,2309.1,13.99693673]
[1769993260064,0.01342642,2309.7,2309.1,2.2094577]
[1769993260290,0.01342642,2309.7,2308.9,1.08373164]
[1769993260491,0.01342642,2309.6,2308.9,1.08373164]
[1769993260684,0.01342642,2309.9,2309.3,0.001]
[1769993260881,0.01342642,2309.8,2309.3,0.001]
[1769993261183,0.01342642,2309.4,2309.0,0.001]
[1769993261382,0.01342642,2309.4,2308.3,0.001]
[1769993261383,0.01342642,2309.1,2308.3,0.001]
[1769993261689,0.01342642,2308.9,2308.3,1.08402145]
[1769993261892,0.01342642,2308.7,2308.3,0.001]
[1769993262108,0.01342642,2308.8,2308.3,0.001]
[1769993262109,0.01342642,2309.1,2308.5,1.08392155]
[1769993262389,29.2606551,2310.0,2308.6,1.08287392]
[1769993262390,16.96053322,2310.0,2308.6,1.08287392]
[1769993262597,16.96053322,2310.0,2308.5,0.001]
[1769993262816,0.01342642,2309.0,2308.5,0.001]
[1769993262967,0.01342642,2308.8,2308.5,0.001]
[1769993263297,0.01342642,2308.6,2308.3,0.001]
[1769993263500,0.01342642,2308.1,2307.4,1.194407]
[1769993263674,0.01342642,2308.0,2307.4,1.194407]
[1769993263873,0.01342642,2308.2,2307.4,1.08346841]
[1769993264086,0.01342642,2308.0,2307.4,1.08346841]
[1769993264289,0.01342642,2308.2,2307.4,1.08346841]
[1769993264600,1.08281419,2308.8,2307.4,14.86059105]
[1769993264768,1.08281419,2308.8,2307.5,14.80435612]
[1769993264970,0.907,2308.9,2307.6,13.96692871]
[1769993265484,16.05188158,2309.7,2307.6,13.95350229]
[1769993265485,0.1024,2309.3,2307.6,13.95350229]
[1769993265687,0.1024,2309.4,2307.8,12.87012563]
[1769993266086,0.1024,2309.4,2307.9,0.907]
[1769993266281,0.55148589,2309.4,2308.0,1.37771256]
[1769993266481,1.08246075,2309.6,2308.3,12.8815014]
[1769993266700,1.08220423,2310.1,2308.5,12.8815014]
[1769993266895,1.08220423,2310.1,2308.6,0.907]
[1769993267097,1.08220423,2310.1,2308.6,1.08288779]
[1769993267098,2.970532,2310.0,2308.6,1.08288779]
[1769993267373,0.29839584,2309.9,2308.6,1.08288779]
[1769993267573,0.11582642,2309.8,2308.6,1.08289272]
[1769993267892,0.01342642,2310.0,2308.6,1.08289272]
[1769993268072,0.1024,2309.8,2308.6,1.08289272]
[1769993268418,0.1024,2309.8,2308.0,1.08314604]
[1769993268419,0.01342642,2308.8,2308.0,1.08314604]
[1769993268576,0.01342642,2308.8,2307.9,1.08320529]
[1769993268897,0.01342642,2308.7,2307.8,1.08325049]
[1769993269106,1.0963338,2308.6,2307.8,0.43330882]
[1769993269303,1.0963338,2308.6,2307.7,1.0833256]
[1769993269600,0.01342642,2308.5,2307.6,1.08334624]
[1769993269772,0.01342642,2308.5,2307.7,1.08330517]
[1769993270599,1.08290738,2308.6,2307.8,1.08328056]
[1769993271181,0.01342642,2308.7,2307.6,1.08337666]
[1769993271515,0.01342642,2308.6,2307.6,1.08337666]
[1769993271684,0.01342642,2308.6,2307.6,1.71586499]
[1769993272084,1.08281358,2308.8,2307.6,14.59736639]
[1769993272717,1.08279315,2308.9,2307.6,14.59736639]
[1769993273289,1.0826729,2309.1,2307.8,13.96478418]
[1769993273490,1.98959551,2309.3,2307.9,14.80209293]
[1769993274011,0.01342642,2309.1,2307.9,14.80209293]
[1769993274214,0.01342642,2309.1,2308.0,0.908]
[1769993274371,0.01342642,2309.1,2307.9,14.80209293]
[1769993274576,0.01342642,2309.0,2307.9,14.80209293]
[1769993274775,0.01342642,2309.0,2308.0,1.67943757]
[1769993275178,1.08276668,2308.9,2308.0,1.67943757]
[1769993275378,1.08276668,2308.9,2308.0,2.76262411]
[1769993275617,1.08276668,2308.9,2304.4,2.18381654]
[1769993275618,1.06960498,2307.8,2305.7,0.2262149]
[1769993275790,3.63074216,2305.4,2305.0,0.908]
[1769993275979,0.22620489,2306.6,2305.1,1.08455164]
[1769993276179,0.01342642,2306.5,2305.2,0.908]
[1769993276377,0.01342642,2306.4,2305.3,0.908]
[1769993276584,2.608806,2305.2,2305.1,2.9149776]
[1769993276812,2.03861927,2306.4,2305.2,12.8815014]
[1769993276991,0.22620489,2306.6,2305.4,12.8815014]
[1769993277305,0.22620489,2306.6,2305.5,1.08436347]
[1769993277891,0.22620489,2306.6,2305.5,1.99236347]